bitfinex-derivatives/quotes_BNBF0:USTF0_20250126
["timestamp","ask_amount","ask_price","bid_price","bid_amount"]
[1737866087371,1.08290861,691.33,689.74,1.0823342]
[1737866089869,1.08290861,691.45,689.67,1.0823342]
[1737866092370,2.21093842,692.32,688.78,2.76984766]
[1737866092371,1.08290861,691.47,689.65,1.0823342]
[1737866092570,1.08290861,691.47,689.66,0.26624134]
[1737866093171,1.08290861,691.47,689.65,1.0823342]
[1737866093971,1.08290861,691.47,689.66,0.26625089]
[1737866096173,1.08290861,691.4,689.67,0.26625162]
[1737866096372,1.08290861,691.4,689.66,0.26625162]
[1737866096672,1.08290861,691.4,689.67,0.26625162]
[1737866096872,1.08290861,691.4,689.66,0.26625162]
[1737866097072,1.08290861,691.4,689.65,1.0823342]
[1737866099273,1.08290861,691.37,689.57,1.0823342]
[1737866102378,1.08290861,691.3,689.47,1.0823342]
[1737866102874,1.08290861,691.3,689.48,0.26631319]
[1737866103877,1.08290861,691.3,689.47,1.0823342]
[1737866104077,1.08290861,691.3,689.48,0.26631142]
[1737866105080,1.08290861,691.22,689.51,1.0823342]
[1737866105279,1.08290861,691.22,689.52,0.26631142]
[1737866105779,1.08290861,691.22,689.51,1.0823342]
[1737866106380,1.08290861,691.22,689.52,0.26631182]
[1737866106781,1.08290861,691.22,689.51,1.0823342]
[1737866108480,1.08290861,691.38,689.4,1.0823342]
[1737866108679,0.28928488,691.36,689.42,0.29009892]
[1737866108880,0.28928488,691.36,689.43,0.26630969]
[1737866109081,0.28928488,691.36,689.45,0.2900863]
[1737866109380,0.28928488,691.36,689.46,0.26630969]
[1737866109576,0.28928488,691.36,689.47,0.29007788]
[1737866110785,0.28928488,691.36,689.48,0.26630933]
[1737866110983,0.28928488,691.36,689.49,0.29006947]
[1737866111283,0.28928488,691.36,689.5,0.26630933]
[1737866111484,1.08290861,691.35,689.5,0.26630933]
[1737866111885,1.08290861,691.35,689.51,0.29006105]
[1737866112085,0.28929744,691.33,689.51,0.29006105]
[1737866113889,1.08290861,691.32,689.51,0.29006105]
[1737866114085,0.28930999,691.3,689.51,0.29006105]
[1737866116693,0.28930999,691.3,689.52,0.26630309]
[1737866116893,0.28930999,691.3,689.53,0.29005264]
[1737866137813,1.08290861,691.29,689.53,0.29005264]
[1737866138012,0.28932255,691.27,689.53,0.29005264]
[1737866140610,1.08290861,691.23,689.53,0.29005264]
[1737866141612,0.28934347,691.22,689.53,0.29005264]
[1737866145521,0.28934347,691.22,689.54,0.26629993]
[1737866145719,0.28934347,691.22,689.55,0.29004423]
[1737866145921,0.28934347,691.22,689.56,0.26629993]
[1737866146127,0.28934347,691.22,689.57,0.29003581]
[1737866146326,0.28934347,691.22,689.58,0.26629993]
[1737866146529,0.28934347,691.22,689.59,0.2900274]
[1737866146726,0.28934347,691.22,689.6,0.26629993]
[1737866146922,0.28934347,691.22,689.61,0.29001899]
[1737866147128,0.28934347,691.22,689.62,0.26629993]
[1737866147330,0.28934347,691.22,689.63,0.29001058]
[1737866147727,0.28934347,691.22,689.64,0.26629436]
[1737866147928,0.28934347,691.22,689.65,0.29000217]
[1737866149437,0.28934347,691.22,689.66,0.26628555]
[1737866149630,0.28934347,691.22,689.67,0.28999376]
[1737866150029,1.08290861,691.16,689.67,0.28999376]
[1737866150227,0.28937278,691.15,689.67,0.28999376]
[1737866152731,0.28937278,691.15,689.68,0.26628382]
[1737866153132,0.28937278,691.15,689.69,0.28998535]
[1737866154333,0.28937278,691.15,689.7,0.26628145]
[1737866155835,0.28937278,691.15,689.69,0.28998535]
[1737866156031,0.28937278,691.15,689.7,0.26628363]
[1737866157537,0.28937278,691.15,689.69,0.28998535]
[1737866157738,0.28937278,691.15,689.7,0.26626397]
[1737866158738,0.28937278,691.15,689.71,0.28997694]
[1737866159045,0.28937278,691.15,689.72,0.26626397]
[1737866159337,0.28937278,691.15,689.73,0.28996853]
[1737866159537,0.28937278,691.15,689.74,0.26626808]
[1737866159738,0.28937278,691.15,689.75,0.28996013]
[1737866162338,0.28937278,691.15,689.76,0.26626087]
[1737866162541,0.28937278,691.15,689.75,0.28996013]
[1737866162742,0.28937278,691.15,689.76,0.26624195]
[1737866162934,0.28937278,691.15,689.77,0.28995172]
[1737866163139,0.28937278,691.15,689.78,0.26624195]
[1737866163836,0.28937278,691.15,689.79,0.28994331]
[1737866164044,0.28937278,691.15,689.8,0.26624195]
[1737866164241,0.28937278,691.15,689.79,0.28994331]
[1737866165740,0.28937278,691.15,689.8,0.26625093]
[1737866166242,0.28937278,691.15,689.81,0.2899349]
[1737866166437,0.28937278,691.15,689.82,0.26624744]
[1737866168041,0.28937278,691.15,689.81,0.2899349]
[1737866168241,0.28937278,691.15,689.82,0.2662254]
[1737866168439,0.28937278,691.15,689.83,0.2899265]
[1737866168641,0.28937278,691.15,689.84,0.2662254]
[1737866169242,0.28937278,691.15,689.85,0.28991809]
[1737866172245,0.28937278,691.15,689.86,0.26624136]
[1737866172440,0.28937278,691.15,689.87,0.28990969]
[1737866172642,0.28937278,691.15,689.88,0.26624136]
[1737866173045,0.28937278,691.15,689.89,0.28990128]
[1737866193160,0.28937278,691.15,689.9,0.26622336]
[1737866193356,0.28937278,691.15,689.9,0.55612044]
[1737866193560,0.28937278,691.15,689.91,0.26622336]
[1737866196059,0.28937278,691.15,689.92,0.26622683]
[1737866196261,0.28937278,691.15,689.91,0.26622683]
[1737866198266,1.37228139,691.15,689.94,1.0823342]
[1737866198565,1.37228139,691.15,689.95,0.26622683]
[1737866200066,1.37228139,691.15,689.94,1.0823342]
[1737866200966,1.37228139,691.15,689.9,0.28989708]
[1737866200967,1.08290861,691.08,690.0,1.0823342]
[1737866203570,0.28937278,691.15,689.9,0.28989708]
[1737866217174,0.28937278,691.15,689.91,0.26623815]
[1737866217881,0.28937278,691.15,689.9,0.28989708]
[1737866218281,1.08290861,691.07,689.95,1.0823342]
[1737866220979,1.08290861,691.14,689.93,1.0823342]
[1737866223785,0.28937278,691.15,689.95,1.0823342]
[1737866227287,1.08290861,691.14,689.97,1.0823342]
[1737866229787,1.08290861,691.14,689.98,0.26622604]
[1737866230185,1.08290861,691.08,690.01,1.0823342]
[1737866233991,1.08290861,691.05,690.02,1.0823342]
[1737866236583,0.28937278,691.15,690.02,1.0823342]
[1737866236584,1.08290861,691.04,690.02,1.0823342]
[1737866238991,1.08290861,691.14,689.95,1.0823342]
[1737866239190,1.08290861,691.14,689.96,0.2662286]
[1737866239393,1.08290861,691.14,689.95,1.0823342]
[1737866239986,1.08290861,691.14,689.96,0.26622549]
[1737866240590,1.08290861,691.14,689.95,1.0823342]
[1737866240786,1.08290861,691.14,689.96,0.26622815]
[1737866240987,1.08290861,691.14,689.95,1.0823342]
[1737866241193,1.08290861,691.14,689.96,0.26621796]
[1737866242593,0.28937278,691.15,690.02,1.0823342]
[1737866242594,1.08290861,691.1,690.02,1.0823342]
[1737866245491,1.08290861,691.07,689.99,1.0823342]
[1737866248692,0.28937278,691.15,689.95,0.28987607]
[1737866269898,1.08290861,691.09,689.96,1.0823342]
[1737866275603,0.28937278,691.15,689.96,1.0823342]
[1737866275604,1.08290861,691.08,689.96,1.0823342]
[1737866278201,1.08290861,691.08,689.97,1.0823342]
[1737866281410,1.08290861,691.08,689.98,1.34856645]
[1737866281606,1.08290861,691.08,689.98,1.0823342]
[1737866281811,1.08290861,691.08,689.99,0.26623453]
[1737866284106,1.08290861,690.97,690.02,1.0823342]
[1737866291610,1.08290861,690.98,690.01,1.0823342]
[1737866294518,1.08290861,690.96,690.01,1.0823342]
[1737866297522,1.08290861,691.13,689.95,0.28987607]
[1737866300417,0.28937278,691.15,689.95,0.28987607]
[1737866300418,1.08290861,691.14,689.95,0.28987607]
[1737866302825,0.28937278,691.15,689.95,0.28987607]
[1737866322345,1.08290861,691.14,689.95,0.28987607]
[1737866325442,1.08290861,691.12,689.95,0.28987607]
[1737866335153,1.08290861,691.08,689.95,0.28987607]
[1737866337359,1.08290861,691.06,689.95,0.28987607]
[1737866341566,0.28937278,691.15,689.95,0.28987607]
[1737866341567,1.08290861,691.1,689.95,0.28987607]
[1737866344268,1.08290861,691.13,689.95,0.28987607]
[1737866347063,1.08290861,691.11,689.96,0.26622953]
[1737866350372,1.08290861,691.08,689.98,1.0823342]
[1737866350571,1.08290861,691.08,689.99,0.26622953]
[1737866351870,1.08290861,691.08,689.98,1.0823342]
[1737866352268,1.08290861,691.08,689.99,0.26621155]
[1737866353173,1.08290861,691.08,689.98,1.0823342]
[1737866353575,1.08290861,691.11,689.99,1.0823342]
[1737866355969,0.28937278,691.15,689.95,0.28987607]
[1737866380494,0.28937278,691.15,689.96,0.26619423]
[1737866380698,0.28937278,691.15,689.97,0.28986767]
[1737866382200,0.28937278,691.15,689.98,0.26619449]
[1737866382398,0.28937278,691.15,689.99,0.28985927]
[1737866384103,0.28937278,691.15,690.0,0.26619267]
[1737866384303,0.28937278,691.15,690.01,0.28985087]
[1737866384703,0.28937278,691.15,690.02,0.26619371]
[1737866384905,0.28937278,691.15,690.03,0.28984247]
[1737866385104,0.28937278,691.15,690.04,0.26619371]
[1737866386405,0.28937278,691.15,690.03,0.28984247]
[1737866386605,0.28937278,691.15,690.04,0.26619156]
[1737866388609,0.28937278,691.15,690.04,1.34852576]
[1737866388807,0.28937278,691.15,690.05,0.26619156]
[1737866390201,0.28937278,691.15,690.04,1.0823342]
[1737866390405,0.28937278,691.15,690.05,0.26618095]
[1737866391509,0.28937278,691.15,690.07,1.0823342]
[1737866391807,0.28937278,691.15,690.08,0.26618095]
[1737866392007,0.28937278,691.15,690.07,1.0823342]
[1737866392201,0.28937278,691.15,690.09,0.26618277]
[1737866392403,0.28937278,691.15,690.1,0.26618277]
[1737866392608,0.28937278,691.15,690.08,0.26618277]
[1737866392807,0.28937278,691.15,690.09,0.26618277]
[1737866393002,0.28937278,691.15,690.08,0.26618277]
[1737866393200,0.28937278,691.15,690.09,0.26618277]
[1737866393406,0.28937278,691.15,690.08,0.26618277]
[1737866394009,0.28937278,691.15,690.07,1.0823342]
[1737866394209,0.28937278,691.15,690.08,0.26617997]
[1737866394609,0.28937278,691.15,690.08,1.34851417]
[1737866394804,0.28937278,691.15,690.09,0.26617997]
[1737866395811,0.28937278,691.15,690.08,1.0823342]
[1737866396109,0.28937278,691.15,690.09,0.26617869]
[1737866397211,0.28937278,691.15,690.1,1.0823342]
[1737866397409,0.28937278,691.15,690.11,0.26617869]
[1737866397705,0.28937278,691.15,690.1,1.0823342]
[1737866397910,0.28937278,691.15,690.11,0.26618213]
[1737866398111,1.08290861,691.2,690.12,0.28980467]
[1737866400007,1.08290861,691.17,690.12,0.28980467]
[1737866403713,1.08290861,692.04,690.12,0.28980467]
[1737866403913,0.28900898,692.02,690.12,0.28980467]
[1737866406815,1.08290861,691.84,690.12,0.28980467]
[1737866407314,0.28909253,691.82,690.12,0.28980467]
[1737866412417,1.08290861,691.78,690.12,0.28980467]
[1737866412610,0.28911761,691.76,690.12,0.28980467]
[1737866415524,1.08290861,691.55,690.12,0.28980467]
[1737866415717,0.28920959,691.54,690.12,0.28980467]
[1737866420024,1.08290861,691.43,690.12,0.28980467]
[1737866423323,1.08290861,691.47,690.12,0.28980467]
[1737866424122,1.08290861,691.47,690.13,0.26612962]
[1737866424324,1.08290861,691.47,690.14,0.55592198]
[1737866424524,1.08290861,691.47,690.15,0.55591778]
[1737866424725,1.08290861,691.47,690.16,0.26612571]
[1737866425118,1.08290861,691.47,690.15,0.28979207]
[1737866426622,1.08290861,691.48,690.15,0.28979207]
[1737866430430,0.28920959,691.54,690.15,0.28979207]
[1737866453143,0.28920959,691.54,690.16,0.26611547]
[1737866453750,0.28920959,691.54,690.17,0.26611415]
[1737866453947,0.28920959,691.54,690.16,0.26611415]
[1737866454143,0.28920959,691.54,690.17,0.26611415]
[1737866454342,0.28920959,691.54,690.16,0.26611415]
[1737866454545,0.28920959,691.54,690.17,0.26611415]
[1737866454748,0.28920959,691.54,690.16,0.26611415]
[1737866454949,0.28920959,691.54,690.16,0.28978787]
[1737866456454,0.28920959,691.54,690.17,0.26610094]
[1737866456651,0.28920959,691.54,690.18,0.28977947]
[1737866456845,0.28920959,691.54,690.19,0.26610094]
[1737866457045,1.08290861,691.45,690.27,1.0823342]
[1737866458252,1.08290861,691.45,690.28,0.26609739]
[1737866458453,1.08290861,691.45,690.27,1.0823342]
[1737866458655,1.08290861,691.45,690.28,0.26609763]
[1737866460548,1.08290861,691.45,690.28,1.34843183]
[1737866460852,1.08290861,691.45,690.28,1.0823342]
[1737866463256,1.08290861,691.48,690.27,1.0823342]
[1737866466851,1.08290861,691.48,690.2,0.28977108]
[1737866466852,1.08290861,691.53,690.23,1.0823342]
[1737866467051,1.08290861,691.53,690.24,0.26609657]
[1737866470459,1.08290861,691.51,690.27,1.0823342]
[1737866473863,1.08290861,691.44,690.26,1.0823342]
[1737866474060,1.08290861,691.44,690.27,0.26610133]
[1737866476967,0.28920959,691.54,690.34,1.0823342]
[1737866477168,0.28920959,691.54,690.35,0.26605913]
[1737866478765,0.28920959,691.54,690.34,1.0823342]
[1737866479268,0.28920959,691.54,690.35,0.26606543]
[1737866480368,0.28920959,691.54,690.33,1.0823342]
[1737866482569,0.28920959,691.54,690.33,1.37205071]
[1737866483069,0.28920959,691.54,690.33,0.28971651]
[1737866512692,1.3721182,691.54,690.33,0.28971651]
[1737866516289,0.28920959,691.54,690.33,0.28971651]
[1737866519298,1.3721182,691.54,690.33,0.28971651]
[1737866522893,0.28920959,691.54,690.33,0.28971651]
[1737866523999,0.28920959,691.54,690.34,0.26607367]
[1737866526002,1.08290861,691.5,690.35,1.0823342]
[1737866526200,1.08290861,691.5,690.36,0.26607367]
[1737866527399,1.08290861,691.5,690.35,1.0823342]
[1737866527596,1.08290861,691.5,690.36,0.26607634]
[1737866529401,1.08290861,691.4,690.41,1.0823342]
[1737866532405,0.28920959,691.54,690.33,0.28971651]
[1737866546315,1.08290861,691.49,690.33,0.28971651]
[1737866546716,0.28923468,691.48,690.33,0.28971651]
[1737866549914,1.37214329,691.48,690.33,0.28971651]
[1737866553718,0.28923468,691.48,690.33,0.28971651]
[1737866568430,1.08290861,691.43,690.33,0.28971651]
[1737866571037,0.28923468,691.48,690.33,0.28971651]
[1737866571038,1.08290861,691.45,690.33,0.28971651]
[1737866572239,0.28925141,691.44,690.33,0.28971651]
[1737866602960,1.08290861,691.39,690.33,0.28971651]
[1737866605959,0.28925141,691.44,690.33,0.28971651]
[1737866627362,1.37216002,691.44,690.33,0.28971651]
[1737866630673,1.08290861,691.38,690.33,0.28971651]
[1737866634175,1.08290861,691.28,690.33,0.28971651]
[1737866637377,1.08290861,691.24,690.33,0.28971651]
[1737866639680,1.08290861,691.28,690.33,0.28971651]
[1737866646081,1.08290861,691.31,690.33,0.28971651]
[1737866648681,1.08290861,691.33,690.33,0.28971651]
[1737866651289,1.08290861,691.42,690.33,0.28971651]
[1737866652986,1.08290861,691.43,690.33,0.28971651]
[1737866655786,1.08290861,691.41,690.33,0.28971651]
[1737866661493,1.08290861,691.34,690.33,0.28971651]
[1737866663991,1.08290861,691.33,690.33,0.28971651]
[1737866666699,1.08290861,691.32,690.33,0.28971651]
[1737866669299,1.08290861,691.3,690.33,0.28971651]
[1737866674899,0.28925141,691.44,690.33,0.28971651]
[1737866674900,1.08290861,691.26,690.33,0.28971651]
[1737866678001,1.08290861,691.36,690.33,0.28971651]
[1737866680396,0.28925141,691.44,690.33,0.28971651]
[1737866680397,1.08290861,691.34,690.33,0.28971651]
[1737866685804,1.08290861,691.41,690.33,0.28971651]
[1737866688609,1.08290861,691.35,690.33,0.28971651]
[1737866691112,1.08290861,691.36,690.33,0.28971651]
[1737866694615,1.08290861,691.33,690.33,0.28971651]
[1737866697613,1.08290861,691.31,690.33,0.28971651]
[1737866702121,1.08290861,691.29,690.27,1.0823342]
[1737866705523,0.28925141,691.44,689.88,1.0823342]
[1737866705716,0.28925141,691.44,689.89,0.28990128]
[1737866711930,0.28925141,691.44,689.9,0.26615975]
[1737866712125,0.28925141,691.44,689.91,0.28989288]
[1737866712432,0.28925141,691.44,689.92,0.26615975]
[1737866712633,0.28925141,691.44,689.93,0.28988448]
[1737866712827,0.28925141,691.44,689.94,0.26615975]
[1737866713028,0.28925141,691.44,689.95,0.28987607]
[1737866713237,0.28925141,691.44,689.96,0.26615975]
[1737866713523,0.28925141,691.44,689.97,0.28986767]
[1737866715430,0.28925141,691.44,689.98,0.26615808]
[1737866715829,0.28925141,691.44,689.97,0.28986767]
[1737866716029,0.28925141,691.44,689.98,0.26615744]
[1737866716831,0.28925141,691.44,689.99,0.26615727]
[1737866717025,0.28925141,691.44,690.0,0.26615727]
[1737866717227,0.28925141,691.44,689.98,0.26615727]
[1737866717427,0.28925141,691.44,689.99,0.26615727]
[1737866717630,0.28925141,691.44,689.98,0.26615727]
[1737866717830,0.28925141,691.44,689.99,0.26615727]
[1737866718033,0.28925141,691.44,689.98,0.26615727]
[1737866718233,0.28925141,691.44,689.99,0.26615727]
[1737866718429,0.28925141,691.44,689.98,0.26615727]
[1737866718629,0.28925141,691.44,689.99,0.26615727]
[1737866718833,0.28925141,691.44,690.0,0.26615727]
[1737866719032,1.08290861,691.43,690.02,1.0823342]
[1737866719235,0.28925978,691.42,690.03,0.26615727]
[1737866721140,0.28925978,691.42,690.02,1.0823342]
[1737866721336,0.28925978,691.42,690.03,0.26614325]
[1737866721542,0.28925978,691.42,690.07,1.0823342]
[1737866721742,0.28925978,691.42,690.08,0.26614325]
[1737866722941,0.28925978,691.42,690.07,1.0823342]
[1737866723940,0.28925978,691.42,690.08,1.0823342]
[1737866726941,0.28925978,691.42,689.97,0.28986767]
[1737866739058,0.28925978,691.42,689.97,1.37220187]
[1737866740656,0.28925978,691.42,689.98,0.26611238]
[1737866740856,0.28925978,691.42,689.99,0.28985927]
[1737866741058,0.28925978,691.42,690.0,0.26611238]
[1737866741255,0.28925978,691.42,690.01,0.28985087]
[1737866741559,0.28925978,691.42,690.02,0.26611274]
[1737866741760,0.28925978,691.42,690.03,0.28984247]
[1737866742158,0.28925978,691.42,690.04,0.26611274]
[1737866742353,0.28925978,691.42,690.05,0.28983406]
[1737866742558,0.28925978,691.42,690.06,0.26611274]
[1737866742758,0.28925978,691.42,690.07,0.28982566]
[1737866742958,0.28925978,691.42,690.08,0.26611274]
[1737866743158,0.28925978,691.42,690.09,0.28981727]
[1737866743553,0.28925978,691.42,690.1,0.26611274]
[1737866743860,0.28925978,691.42,690.11,0.28980887]
[1737866744057,0.28925978,691.42,690.12,0.26611274]
[1737866744358,0.28925978,691.42,690.12,0.55591741]
[1737866744557,0.28925978,691.42,690.19,1.0823342]
[1737866744762,0.28925978,691.42,690.2,0.26611274]
[1737866748464,1.37216839,691.42,690.23,1.0823342]
[1737866748762,1.37216839,691.42,690.24,0.26611274]
[1737866750664,1.37216839,691.42,690.25,0.26609826]
[1737866750864,1.37216839,691.42,690.24,0.26609826]
[1737866751064,1.37216839,691.42,690.25,0.26609826]
[1737866751263,1.37216839,691.42,690.26,0.26609826]
[1737866751463,1.37216839,691.42,690.27,0.26609826]
[1737866751665,1.37216839,691.42,690.23,1.0823342]
[1737866751866,1.37216839,691.42,690.24,0.2660988]
[1737866752463,1.37216839,691.42,690.23,1.0823342]
[1737866752464,1.37216839,691.42,690.25,0.26609785]
[1737866752662,1.37216839,691.42,690.24,1.34843205]
[1737866752663,0.28925978,691.42,690.24,1.34843205]
[1737866752867,0.28925978,691.42,690.25,0.26609785]
[1737866754367,0.28925978,691.42,690.26,0.26609163]
[1737866754567,0.28925978,691.42,690.27,0.26609163]
[1737866754761,0.28925978,691.42,690.28,0.26609163]
[1737866754963,0.28925978,691.42,690.29,0.26609163]
[1737866755164,0.28925978,691.42,690.3,0.26609163]
[1737866755367,0.28925978,691.42,690.31,0.26609163]
[1737866755668,0.28925978,691.42,690.32,0.26609163]
[1737866755870,0.28925978,691.42,690.33,0.26609163]
[1737866756067,0.28925978,691.42,690.25,1.0823342]
[1737866756262,0.28925978,691.42,690.26,0.26608713]
[1737866757870,0.28925978,691.42,690.25,1.0823342]
[1737866758071,0.28925978,691.42,690.26,0.26609138]
[1737866758766,0.28925978,691.42,690.25,1.0823342]
[1737866759167,0.28925978,691.42,690.26,1.0823342]
[1737866762968,0.28925978,691.42,690.12,0.28980467]
[1737866770375,0.28925978,691.42,690.13,0.2660805]
[1737866770576,0.28925978,691.42,690.14,0.28979627]
[1737866772577,0.28925978,691.42,690.15,0.26608086]
[1737866772777,0.28925978,691.42,690.16,0.28978787]
[1737866772976,0.28925978,691.42,690.17,0.26608086]
[1737866773176,0.28925978,691.42,690.18,0.28977947]
[1737866773376,0.28925978,691.42,690.19,0.26608086]
[1737866773576,0.28925978,691.42,690.2,0.28977108]
[1737866773773,0.28925978,691.42,690.21,0.26608086]
[1737866773977,0.28925978,691.42,690.22,0.28976268]
[1737866774880,0.28925978,691.42,690.23,0.26608433]
[1737866775082,0.28925978,691.42,690.22,0.28976268]
[1737866775281,0.28925978,691.42,690.23,0.26608272]
[1737866775481,0.28925978,691.42,690.22,0.28976268]
[1737866791687,0.28925978,691.42,689.68,1.0823342]
[1737866791885,0.28925978,691.42,689.69,0.5561947]
[1737866792089,0.28925978,691.42,689.7,0.26620935]
[1737866793091,0.28925978,691.42,689.71,0.28997694]
[1737866793290,0.28925978,691.42,689.72,0.26620935]
[1737866793492,0.28925978,691.42,689.73,0.28996853]
[1737866793688,0.28925978,691.42,689.74,0.26620935]
[1737866793892,0.28925978,691.42,689.75,0.28996013]
[1737866794095,0.28925978,691.42,689.76,0.26620935]
[1737866794293,0.28925978,691.42,689.77,0.55616402]
[1737866794593,0.28925978,691.42,689.78,0.55615981]
[1737866794791,0.28925978,691.42,689.79,0.55615561]
[1737866795092,0.28925978,691.42,689.8,0.55615141]
[1737866795293,0.28925978,691.42,689.81,0.5561472]
[1737866795488,0.28925978,691.42,689.82,0.556143]
[1737866795693,0.28925978,691.42,689.83,0.2899265]
[1737866797095,0.28925978,691.42,689.84,0.26621215]
[1737866800396,0.28925978,691.42,689.85,0.26623973]
[1737866800592,0.28925978,691.42,689.86,0.26623973]
[1737866800798,0.28925978,691.42,689.84,0.26623973]
[1737866800997,0.28925978,691.42,689.85,0.26623973]
[1737866801197,0.28925978,691.42,689.86,0.26623973]
[1737866801397,0.28925978,691.42,689.83,0.2899265]
[1737866801698,0.28925978,691.42,689.84,0.26625825]
[1737866802401,0.28925978,691.42,689.83,0.2899265]
[1737866802698,0.28925978,691.42,689.84,0.26626415]
[1737866803100,0.28925978,691.42,689.83,0.2899265]
[1737866803595,1.08290861,691.38,689.83,0.2899265]
[1737866803800,0.28928488,691.36,689.83,0.2899265]
[1737866813011,0.28928488,691.36,689.84,0.26626547]
[1737866814610,0.28928488,691.36,689.85,0.26626295]
[1737866814806,0.28928488,691.36,689.84,0.26626295]
[1737866816509,0.28928488,691.36,689.85,0.26626733]
[1737866816711,0.28928488,691.36,689.84,0.26626733]
[1737866816909,0.28928488,691.36,689.83,0.2899265]
[1737866817111,1.08290861,691.26,689.84,0.26626733]
[1737866817307,0.28933092,691.25,689.84,0.26626733]
[1737866818307,0.28933092,691.25,689.85,0.2662666]
[1737866818615,0.28933092,691.25,689.84,0.2662666]
[1737866818915,0.28933092,691.25,689.85,0.2662666]
[1737866819212,0.28933092,691.25,689.84,0.2662666]
[1737866819407,0.28933092,691.25,689.83,0.2899265]
[1737866819408,0.28933092,691.25,689.85,0.2662666]
[1737866819607,0.28933092,691.25,689.86,0.2662666]
[1737866819813,0.28933092,691.25,689.87,0.2662666]
[1737866820011,0.28933092,691.25,689.83,0.2899265]
[1737866820012,0.28933092,691.25,689.88,0.2662666]
[1737866820211,0.28933092,691.25,689.84,0.2662666]
[1737866820410,0.28933092,691.25,689.83,0.2899265]
[1737866820614,0.28933092,691.25,689.84,0.26626808]
[1737866820913,1.08290861,691.16,689.84,0.26626808]
[1737866821714,0.28937278,691.15,689.84,0.26626808]
[1737866823512,1.08290861,691.12,689.84,0.26626808]
[1737866824314,1.08290861,691.12,689.83,0.2899265]
[1737866826014,1.08290861,691.1,689.83,0.2899265]
[1737866828916,0.2893979,691.09,689.83,0.2899265]
[1737866829316,1.08290861,691.08,689.83,0.2899265]
[1737866832413,1.08290861,691.07,689.83,0.2899265]
[1737866836623,1.08290861,691.06,689.83,0.2899265]
[1737866840329,0.2893979,691.09,689.83,1.3722607]
[1737866840330,1.08290861,691.07,689.83,1.3722607]
[1737866843534,0.2893979,691.09,689.83,0.2899265]
[1737866854744,1.08290861,691.08,689.83,0.2899265]
[1737866857147,1.08290861,691.08,689.84,0.26626985]
[1737866857445,1.08290861,691.02,689.84,0.26626985]
[1737866860649,1.08290861,691.0,689.91,1.0823342]
[1737866863849,0.2893979,691.09,689.83,0.2899265]
[1737866875463,0.2893979,691.09,689.84,0.26624928]
[1737866877863,1.37230651,691.09,689.88,1.0823342]
[1737866878568,1.37230651,691.09,689.89,0.26625154]
[1737866878963,1.37230651,691.09,689.88,1.0823342]
[1737866879161,1.37230651,691.09,689.89,0.26624957]
[1737866880063,1.08290861,691.05,689.9,1.0823342]
[1737866882663,0.2893979,691.09,689.83,0.2899265]
[1737866882664,1.08290861,691.03,689.88,1.0823342]
[1737866885563,1.37230651,691.09,689.87,1.0823342]
[1737866888771,1.37230651,691.09,689.83,0.2899265]
[1737866888772,1.08290861,691.02,689.88,1.0823342]
[1737866892372,1.08290861,690.98,689.86,1.0823342]
[1737866895077,0.2893979,691.09,689.83,0.2899265]
[1737866904885,0.2893979,691.09,689.83,0.28090156]
[1737866907491,1.37230651,691.09,689.83,0.28090156]
[1737866910795,0.2893979,691.09,689.83,0.28090156]
[1737866914399,1.08290861,691.55,689.14,1.0823342]
[1737866914598,1.08290861,691.55,689.15,0.26632955]
[1737866915893,2.21093842,692.29,689.15,0.26632955]
[1737866915894,1.08290861,691.59,689.15,0.26632955]
[1737866920598,1.08290861,691.59,689.14,1.0823342]
[1737866920904,1.08290861,691.59,689.15,0.26633106]
[1737866921499,1.08290861,691.59,689.14,1.0823342]
[1737866921702,1.08290861,691.59,689.15,0.26634143]
[1737866923300,1.08290861,691.59,689.14,1.0823342]
[1737866923500,1.08290861,691.59,689.15,0.26634792]
[1737866923701,1.08290861,691.27,689.39,1.0823342]
[1737866923901,1.08290861,691.15,689.4,0.26634792]
[1737866926504,1.08290861,691.1,689.4,0.26634792]
[1737866927005,1.08290861,691.1,689.39,1.0823342]
[1737866927205,1.08290861,691.1,689.4,0.26634546]
[1737866928909,1.08290861,691.1,689.41,0.26634495]
[1737866929208,1.08290861,691.1,689.42,0.26634495]
[1737866929405,1.08290861,691.1,689.43,0.26634495]
[1737866929608,1.08290861,691.13,689.4,0.26634495]
[1737866929908,1.08290861,691.13,689.41,0.26634495]
[1737866930108,1.08290861,691.13,689.4,0.26634495]
[1737866930609,1.08290861,691.13,689.39,1.0823342]
[1737866932109,1.08290861,691.59,689.06,1.0823342]
[1737866935305,1.08290861,691.59,687.85,0.70327531]
[1737866935306,1.08290861,691.62,689.02,1.0823342]
[1737866935510,1.08290861,691.62,689.03,0.26635547]
[1737866935709,0.28922631,691.5,689.05,0.29025469]
[1737866937815,0.28922631,691.5,689.06,0.26635293]
[1737866938016,0.28922631,691.5,689.08,0.29024206]
[1737866938917,0.28922631,691.5,689.09,0.26634205]
[1737866939112,0.28922631,691.5,689.11,0.29022942]
[1737866939314,0.28922631,691.5,689.12,0.26634205]
[1737866939517,0.28922631,691.5,689.14,0.29021679]
[1737866940413,0.28922631,691.5,689.15,0.26634912]
[1737866940614,0.28922631,691.5,689.17,0.29020415]
[1737866940817,0.28922631,691.5,689.18,0.26634912]
[1737866941119,1.08290861,691.44,689.23,1.0823342]
[1737866941317,0.28929744,691.33,689.24,0.5565238]